{"text_format":"3","workbook":"xlsx","n_sheets":2,"sheets":["Viktminskningsspårare","beräkningar"],"not_rendered":{"charts":1,"defined_names":10},"read":"whole","date_system":"1900"}

{"sheet":"Viktminskningsspårare","index":0,"n_rows":19,"n_cols":9,"rows_kept":19,"merged":[[0,3,0,7],[0,8,0,9],[1,3,2,9]]}
[null,"MÅLVIKT","DIAGRAMVY","Namn",{"$nulls":4},"VIKTMINSKNING"]
[{"$nulls":3},"ÖVERSIKT"]
[null,{"v":172,"d":"172.0"},"LISTA"]
[null,"VISA MÅLVIKT","Ja"]
[null,"Diagram med viktspårning som spårar aktuell vikt finns i den här cellen. Välj \"Ja\" i cell C4 för att visa linjediagrammet för målvikt."]
[]
[null,"DATUM","VIKT"]
[null,{"$f":"TODAY()-77","v":"2022-01-19"},{"v":176,"d":"176.0"}]
[null,{"$f":"TODAY()-70","v":"2022-01-26"},{"v":176,"d":"176.0"}]
[null,{"$f":"TODAY()-63","v":"2022-02-02"},177.6]
[null,{"$f":"TODAY()-56","v":"2022-02-09"},176.5]
[null,{"$f":"TODAY()-49","v":"2022-02-16"},176.1]
[null,{"$f":"TODAY()-42","v":"2022-02-23"},{"v":174,"d":"174.0"}]
[null,{"$f":"TODAY()-35","v":"2022-03-02"},173.5]
[null,{"$f":"TODAY()-28","v":"2022-03-09"},{"v":173,"d":"173.0"}]
[null,{"$f":"TODAY()-21","v":"2022-03-16"},{"v":172,"d":"172.0"}]
[null,{"$f":"TODAY()-14","v":"2022-03-23"},{"v":172,"d":"172.0"}]
[null,{"$f":"TODAY()-7","v":"2022-03-30"},{"v":173,"d":"173.0"}]
[null,{"$f":"TODAY()","v":"2022-04-06"},{"v":172,"d":"172.0"}]

{"sheet":"beräkningar","index":1,"n_rows":107,"n_cols":17,"rows_kept":107,"hidden":true}
["*** Bladet ska vara dolt ***"]
[]
[{"$f":"COUNTIF(A5:A107,FALSE)","v":12},"Perioder","Värden",{"$nulls":3},{"$f":"COUNTIF(H5:H28,\">\"&0)","v":4},"Perioder",null,"Värden"]
[null,"Vecka",null,null,{"$f":"IFERROR(IF(VisaMålvikt=\"Ja\", TRUE, FALSE),FALSE)","v":true},null,null,"Månad","EOM"]
[{"$f":"FALSE","v":false},{"$f":"IFERROR(IF(LEN(Viktminskningsspårare!$B8)=0,TODAY(),Viktminskningsspårare!$B8),TODAY())","v":"2022-01-19"},{"$f":"IFERROR(IF(LEN(Viktminskningsspårare!$C8)=0,Målvikt,Viktminskningsspårare!$C8),0)","v":176},{"$f":"IFERROR(IF(MIN(Diagramperiod)=0,TODAY(),MIN(Diagramperiod)),TODAY())","v":"2022-01-19"},{"$f":"IFERROR(IF($A$5,0,IF($E$4,Målvikt,NA())),0)","v":172},null,null,{"$f":"IFERROR(IF($A$5,TODAY(),DATE(YEAR($B5),MONTH($B5),1)),\"\")","v":"2022-01-01"},{"$f":"IFERROR(IF($A$5,TODAY(),EOMONTH($H5,0)),\"\")","v":"2022-01-31"},{"$f":"IFERROR(IF($A$5,0,AVERAGEIFS(Vikt[VIKT],Vikt[DATUM],\">=\"&$H5,Vikt[DATUM],\"<=\"&$I5)),NA())","v":176}]
[{"$f":"IF((LEN(Viktminskningsspårare!$C9)=0),TRUE)","v":false},{"$f":"IFERROR(IF(A6,0,IF(LEN(Viktminskningsspårare!$B9)=0,0,Viktminskningsspårare!$B9)),\"\")","v":"2022-01-26"},{"$f":"IFERROR(IF(A6,0,IF(LEN(Viktminskningsspårare!$C9)=0,0,Viktminskningsspårare!$C9)),\"\")","v":176},{"$f":"IFERROR(IF(MAX(Diagramperiod)=0,TODAY(),MAX(Diagramperiod)),TODAY())","v":"2022-04-06"},{"$f":"IFERROR(IF($A$5,0,IF($E$4,Målvikt,NA())),0)","v":172},null,null,{"$f":"IF($I5+1>MAX($B:$B),NA(),$I5+1)","v":"2022-02-01"},{"$f":"EOMONTH($H6,0)","v":"2022-02-28"},{"$f":"IFERROR(AVERAGEIFS(Vikt[VIKT],Vikt[DATUM],\">=\"&$H6,Vikt[DATUM],\"<=\"&$I6),NA())","v":176.05}]
[{"$f":"IF((LEN(Viktminskningsspårare!$C10)=0),TRUE)","v":false},{"$f":"IFERROR(IF(A7,0,IF(LEN(Viktminskningsspårare!$B10)=0,0,Viktminskningsspårare!$B10)),\"\")","v":"2022-02-02"},{"$f":"IFERROR(IF(A7,0,IF(LEN(Viktminskningsspårare!$C10)=0,0,Viktminskningsspårare!$C10)),\"\")","v":177.6},{"$nulls":4},"2022-03-01","2022-03-31",{"$f":"IFERROR(AVERAGEIFS(Vikt[VIKT],Vikt[DATUM],\">=\"&$H7,Vikt[DATUM],\"<=\"&$I7),NA())","v":172.7}]
[{"$f":"IF((LEN(Viktminskningsspårare!$C11)=0),TRUE)","v":false},{"$f":"IFERROR(IF(A8,0,IF(LEN(Viktminskningsspårare!$B11)=0,0,Viktminskningsspårare!$B11)),\"\")","v":"2022-02-09"},{"$f":"IFERROR(IF(A8,0,IF(LEN(Viktminskningsspårare!$C11)=0,0,Viktminskningsspårare!$C11)),\"\")","v":176.5},{"$nulls":4},"2022-04-01","2022-04-30",{"$f":"IFERROR(AVERAGEIFS(Vikt[VIKT],Vikt[DATUM],\">=\"&$H8,Vikt[DATUM],\"<=\"&$I8),NA())","v":172}]
[{"$f":"IF((LEN(Viktminskningsspårare!$C12)=0),TRUE)","v":false},{"$f":"IFERROR(IF(A9,0,IF(LEN(Viktminskningsspårare!$B12)=0,0,Viktminskningsspårare!$B12)),\"\")","v":"2022-02-16"},{"$f":"IFERROR(IF(A9,0,IF(LEN(Viktminskningsspårare!$C12)=0,0,Viktminskningsspårare!$C12)),\"\")","v":176.1},{"$nulls":4},{"$error":"#N/A"},{"$error":"#N/A"},{"$f":"IFERROR(AVERAGEIFS(Vikt[VIKT],Vikt[DATUM],\">=\"&$H9,Vikt[DATUM],\"<=\"&$I9),NA())","v":{"$error":"#N/A"}}]
[{"$f":"IF((LEN(Viktminskningsspårare!$C13)=0),TRUE)","v":false},{"$f":"IFERROR(IF(A10,0,IF(LEN(Viktminskningsspårare!$B13)=0,0,Viktminskningsspårare!$B13)),\"\")","v":"2022-02-23"},{"$f":"IFERROR(IF(A10,0,IF(LEN(Viktminskningsspårare!$C13)=0,0,Viktminskningsspårare!$C13)),\"\")","v":174},{"$nulls":4},{"$error":"#N/A"},{"$error":"#N/A"},{"$f":"IFERROR(AVERAGEIFS(Vikt[VIKT],Vikt[DATUM],\">=\"&$H10,Vikt[DATUM],\"<=\"&$I10),NA())","v":{"$error":"#N/A"}}]
[{"$f":"IF((LEN(Viktminskningsspårare!$C14)=0),TRUE)","v":false},{"$f":"IFERROR(IF(A11,0,IF(LEN(Viktminskningsspårare!$B14)=0,0,Viktminskningsspårare!$B14)),\"\")","v":"2022-03-02"},{"$f":"IFERROR(IF(A11,0,IF(LEN(Viktminskningsspårare!$C14)=0,0,Viktminskningsspårare!$C14)),\"\")","v":173.5},{"$nulls":4},{"$error":"#N/A"},{"$error":"#N/A"},{"$f":"IFERROR(AVERAGEIFS(Vikt[VIKT],Vikt[DATUM],\">=\"&$H11,Vikt[DATUM],\"<=\"&$I11),NA())","v":{"$error":"#N/A"}},{"$nulls":6},{"$f":"MAX($B:$B)","v":"2022-04-06"}]
[{"$f":"IF((LEN(Viktminskningsspårare!$C15)=0),TRUE)","v":false},{"$f":"IFERROR(IF(A12,0,IF(LEN(Viktminskningsspårare!$B15)=0,0,Viktminskningsspårare!$B15)),\"\")","v":"2022-03-09"},{"$f":"IFERROR(IF(A12,0,IF(LEN(Viktminskningsspårare!$C15)=0,0,Viktminskningsspårare!$C15)),\"\")","v":173},{"$nulls":4},{"$error":"#N/A"},{"$error":"#N/A"},{"$f":"IFERROR(AVERAGEIFS(Vikt[VIKT],Vikt[DATUM],\">=\"&$H12,Vikt[DATUM],\"<=\"&$I12),NA())","v":{"$error":"#N/A"}}]
[{"$f":"IF((LEN(Viktminskningsspårare!$C16)=0),TRUE)","v":false},{"$f":"IFERROR(IF(A13,0,IF(LEN(Viktminskningsspårare!$B16)=0,0,Viktminskningsspårare!$B16)),\"\")","v":"2022-03-16"},{"$f":"IFERROR(IF(A13,0,IF(LEN(Viktminskningsspårare!$C16)=0,0,Viktminskningsspårare!$C16)),\"\")","v":172},{"$nulls":4},{"$error":"#N/A"},{"$error":"#N/A"},{"$f":"IFERROR(AVERAGEIFS(Vikt[VIKT],Vikt[DATUM],\">=\"&$H13,Vikt[DATUM],\"<=\"&$I13),NA())","v":{"$error":"#N/A"}}]
[{"$f":"IF((LEN(Viktminskningsspårare!$C17)=0),TRUE)","v":false},{"$f":"IFERROR(IF(A14,0,IF(LEN(Viktminskningsspårare!$B17)=0,0,Viktminskningsspårare!$B17)),\"\")","v":"2022-03-23"},{"$f":"IFERROR(IF(A14,0,IF(LEN(Viktminskningsspårare!$C17)=0,0,Viktminskningsspårare!$C17)),\"\")","v":172},{"$nulls":4},{"$error":"#N/A"},{"$error":"#N/A"},{"$f":"IFERROR(AVERAGEIFS(Vikt[VIKT],Vikt[DATUM],\">=\"&$H14,Vikt[DATUM],\"<=\"&$I14),NA())","v":{"$error":"#N/A"}}]
[{"$f":"IF((LEN(Viktminskningsspårare!$C18)=0),TRUE)","v":false},{"$f":"IFERROR(IF(A15,0,IF(LEN(Viktminskningsspårare!$B18)=0,0,Viktminskningsspårare!$B18)),\"\")","v":"2022-03-30"},{"$f":"IFERROR(IF(A15,0,IF(LEN(Viktminskningsspårare!$C18)=0,0,Viktminskningsspårare!$C18)),\"\")","v":173},{"$nulls":4},{"$error":"#N/A"},{"$error":"#N/A"},{"$f":"IFERROR(AVERAGEIFS(Vikt[VIKT],Vikt[DATUM],\">=\"&$H15,Vikt[DATUM],\"<=\"&$I15),NA())","v":{"$error":"#N/A"}}]
[{"$f":"IF((LEN(Viktminskningsspårare!$C19)=0),TRUE)","v":false},{"$f":"IFERROR(IF(A16,0,IF(LEN(Viktminskningsspårare!$B19)=0,0,Viktminskningsspårare!$B19)),\"\")","v":"2022-04-06"},{"$f":"IFERROR(IF(A16,0,IF(LEN(Viktminskningsspårare!$C19)=0,0,Viktminskningsspårare!$C19)),\"\")","v":172},{"$nulls":4},{"$error":"#N/A"},{"$error":"#N/A"},{"$f":"IFERROR(AVERAGEIFS(Vikt[VIKT],Vikt[DATUM],\">=\"&$H16,Vikt[DATUM],\"<=\"&$I16),NA())","v":{"$error":"#N/A"}}]
[{"$f":"IF((LEN(Viktminskningsspårare!$C20)=0),TRUE)","v":true},{"$f":"IFERROR(IF(A17,0,IF(LEN(Viktminskningsspårare!$B20)=0,0,Viktminskningsspårare!$B20)),\"\")","v":"00:00:00"},{"$f":"IFERROR(IF(A17,0,IF(LEN(Viktminskningsspårare!$C20)=0,0,Viktminskningsspårare!$C20)),\"\")","v":0},{"$nulls":4},{"$error":"#N/A"},{"$error":"#N/A"},{"$f":"IFERROR(AVERAGEIFS(Vikt[VIKT],Vikt[DATUM],\">=\"&$H17,Vikt[DATUM],\"<=\"&$I17),NA())","v":{"$error":"#N/A"}}]
[{"$f":"IF((LEN(Viktminskningsspårare!$C21)=0),TRUE)","v":true},{"$f":"IFERROR(IF(A18,0,IF(LEN(Viktminskningsspårare!$B21)=0,0,Viktminskningsspårare!$B21)),\"\")","v":"00:00:00"},{"$f":"IFERROR(IF(A18,0,IF(LEN(Viktminskningsspårare!$C21)=0,0,Viktminskningsspårare!$C21)),\"\")","v":0},{"$nulls":4},{"$error":"#N/A"},{"$error":"#N/A"},{"$f":"IFERROR(AVERAGEIFS(Vikt[VIKT],Vikt[DATUM],\">=\"&$H18,Vikt[DATUM],\"<=\"&$I18),NA())","v":{"$error":"#N/A"}}]
[{"$f":"IF((LEN(Viktminskningsspårare!$C22)=0),TRUE)","v":true},{"$f":"IFERROR(IF(A19,0,IF(LEN(Viktminskningsspårare!$B22)=0,0,Viktminskningsspårare!$B22)),\"\")","v":"00:00:00"},{"$f":"IFERROR(IF(A19,0,IF(LEN(Viktminskningsspårare!$C22)=0,0,Viktminskningsspårare!$C22)),\"\")","v":0},{"$nulls":4},{"$error":"#N/A"},{"$error":"#N/A"},{"$f":"IFERROR(AVERAGEIFS(Vikt[VIKT],Vikt[DATUM],\">=\"&$H19,Vikt[DATUM],\"<=\"&$I19),NA())","v":{"$error":"#N/A"}}]
[{"$f":"IF((LEN(Viktminskningsspårare!$C23)=0),TRUE)","v":true},{"$f":"IFERROR(IF(A20,0,IF(LEN(Viktminskningsspårare!$B23)=0,0,Viktminskningsspårare!$B23)),\"\")","v":"00:00:00"},{"$f":"IFERROR(IF(A20,0,IF(LEN(Viktminskningsspårare!$C23)=0,0,Viktminskningsspårare!$C23)),\"\")","v":0},{"$nulls":4},{"$error":"#N/A"},{"$error":"#N/A"},{"$f":"IFERROR(AVERAGEIFS(Vikt[VIKT],Vikt[DATUM],\">=\"&$H20,Vikt[DATUM],\"<=\"&$I20),NA())","v":{"$error":"#N/A"}}]
[{"$f":"IF((LEN(Viktminskningsspårare!$C24)=0),TRUE)","v":true},{"$f":"IFERROR(IF(A21,0,IF(LEN(Viktminskningsspårare!$B24)=0,0,Viktminskningsspårare!$B24)),\"\")","v":"00:00:00"},{"$f":"IFERROR(IF(A21,0,IF(LEN(Viktminskningsspårare!$C24)=0,0,Viktminskningsspårare!$C24)),\"\")","v":0},{"$nulls":4},{"$error":"#N/A"},{"$error":"#N/A"},{"$f":"IFERROR(AVERAGEIFS(Vikt[VIKT],Vikt[DATUM],\">=\"&$H21,Vikt[DATUM],\"<=\"&$I21),NA())","v":{"$error":"#N/A"}}]
[{"$f":"IF((LEN(Viktminskningsspårare!$C25)=0),TRUE)","v":true},{"$f":"IFERROR(IF(A22,0,IF(LEN(Viktminskningsspårare!$B25)=0,0,Viktminskningsspårare!$B25)),\"\")","v":"00:00:00"},{"$f":"IFERROR(IF(A22,0,IF(LEN(Viktminskningsspårare!$C25)=0,0,Viktminskningsspårare!$C25)),\"\")","v":0},{"$nulls":4},{"$error":"#N/A"},{"$error":"#N/A"},{"$f":"IFERROR(AVERAGEIFS(Vikt[VIKT],Vikt[DATUM],\">=\"&$H22,Vikt[DATUM],\"<=\"&$I22),NA())","v":{"$error":"#N/A"}}]
[{"$f":"IF((LEN(Viktminskningsspårare!$C26)=0),TRUE)","v":true},{"$f":"IFERROR(IF(A23,0,IF(LEN(Viktminskningsspårare!$B26)=0,0,Viktminskningsspårare!$B26)),\"\")","v":"00:00:00"},{"$f":"IFERROR(IF(A23,0,IF(LEN(Viktminskningsspårare!$C26)=0,0,Viktminskningsspårare!$C26)),\"\")","v":0},{"$nulls":4},{"$error":"#N/A"},{"$error":"#N/A"},{"$f":"IFERROR(AVERAGEIFS(Vikt[VIKT],Vikt[DATUM],\">=\"&$H23,Vikt[DATUM],\"<=\"&$I23),NA())","v":{"$error":"#N/A"}}]
[{"$f":"IF((LEN(Viktminskningsspårare!$C27)=0),TRUE)","v":true},{"$f":"IFERROR(IF(A24,0,IF(LEN(Viktminskningsspårare!$B27)=0,0,Viktminskningsspårare!$B27)),\"\")","v":"00:00:00"},{"$f":"IFERROR(IF(A24,0,IF(LEN(Viktminskningsspårare!$C27)=0,0,Viktminskningsspårare!$C27)),\"\")","v":0},{"$nulls":4},{"$error":"#N/A"},{"$error":"#N/A"},{"$f":"IFERROR(AVERAGEIFS(Vikt[VIKT],Vikt[DATUM],\">=\"&$H24,Vikt[DATUM],\"<=\"&$I24),NA())","v":{"$error":"#N/A"}}]
[{"$f":"IF((LEN(Viktminskningsspårare!$C28)=0),TRUE)","v":true},{"$f":"IFERROR(IF(A25,0,IF(LEN(Viktminskningsspårare!$B28)=0,0,Viktminskningsspårare!$B28)),\"\")","v":"00:00:00"},{"$f":"IFERROR(IF(A25,0,IF(LEN(Viktminskningsspårare!$C28)=0,0,Viktminskningsspårare!$C28)),\"\")","v":0},{"$nulls":4},{"$error":"#N/A"},{"$error":"#N/A"},{"$f":"IFERROR(AVERAGEIFS(Vikt[VIKT],Vikt[DATUM],\">=\"&$H25,Vikt[DATUM],\"<=\"&$I25),NA())","v":{"$error":"#N/A"}}]
[{"$f":"IF((LEN(Viktminskningsspårare!$C29)=0),TRUE)","v":true},{"$f":"IFERROR(IF(A26,0,IF(LEN(Viktminskningsspårare!$B29)=0,0,Viktminskningsspårare!$B29)),\"\")","v":"00:00:00"},{"$f":"IFERROR(IF(A26,0,IF(LEN(Viktminskningsspårare!$C29)=0,0,Viktminskningsspårare!$C29)),\"\")","v":0},{"$nulls":4},{"$error":"#N/A"},{"$error":"#N/A"},{"$f":"IFERROR(AVERAGEIFS(Vikt[VIKT],Vikt[DATUM],\">=\"&$H26,Vikt[DATUM],\"<=\"&$I26),NA())","v":{"$error":"#N/A"}}]
[{"$f":"IF((LEN(Viktminskningsspårare!$C30)=0),TRUE)","v":true},{"$f":"IFERROR(IF(A27,0,IF(LEN(Viktminskningsspårare!$B30)=0,0,Viktminskningsspårare!$B30)),\"\")","v":"00:00:00"},{"$f":"IFERROR(IF(A27,0,IF(LEN(Viktminskningsspårare!$C30)=0,0,Viktminskningsspårare!$C30)),\"\")","v":0},{"$nulls":4},{"$error":"#N/A"},{"$error":"#N/A"},{"$f":"IFERROR(AVERAGEIFS(Vikt[VIKT],Vikt[DATUM],\">=\"&$H27,Vikt[DATUM],\"<=\"&$I27),NA())","v":{"$error":"#N/A"}}]
[{"$f":"IF((LEN(Viktminskningsspårare!$C31)=0),TRUE)","v":true},{"$f":"IFERROR(IF(A28,0,IF(LEN(Viktminskningsspårare!$B31)=0,0,Viktminskningsspårare!$B31)),\"\")","v":"00:00:00"},{"$f":"IFERROR(IF(A28,0,IF(LEN(Viktminskningsspårare!$C31)=0,0,Viktminskningsspårare!$C31)),\"\")","v":0},{"$nulls":4},{"$error":"#N/A"},{"$error":"#N/A"},{"$f":"IFERROR(AVERAGEIFS(Vikt[VIKT],Vikt[DATUM],\">=\"&$H28,Vikt[DATUM],\"<=\"&$I28),NA())","v":{"$error":"#N/A"}}]
[{"$f":"IF((LEN(Viktminskningsspårare!$C32)=0),TRUE)","v":true},{"$f":"IFERROR(IF(A29,0,IF(LEN(Viktminskningsspårare!$B32)=0,0,Viktminskningsspårare!$B32)),\"\")","v":"00:00:00"},{"$f":"IFERROR(IF(A29,0,IF(LEN(Viktminskningsspårare!$C32)=0,0,Viktminskningsspårare!$C32)),\"\")","v":0}]
[{"$f":"IF((LEN(Viktminskningsspårare!$C33)=0),TRUE)","v":true},{"$f":"IFERROR(IF(A30,0,IF(LEN(Viktminskningsspårare!$B33)=0,0,Viktminskningsspårare!$B33)),\"\")","v":"00:00:00"},{"$f":"IFERROR(IF(A30,0,IF(LEN(Viktminskningsspårare!$C33)=0,0,Viktminskningsspårare!$C33)),\"\")","v":0}]
[{"$f":"IF((LEN(Viktminskningsspårare!$C34)=0),TRUE)","v":true},{"$f":"IFERROR(IF(A31,0,IF(LEN(Viktminskningsspårare!$B34)=0,0,Viktminskningsspårare!$B34)),\"\")","v":"00:00:00"},{"$f":"IFERROR(IF(A31,0,IF(LEN(Viktminskningsspårare!$C34)=0,0,Viktminskningsspårare!$C34)),\"\")","v":0}]
[{"$f":"IF((LEN(Viktminskningsspårare!$C35)=0),TRUE)","v":true},{"$f":"IFERROR(IF(A32,0,IF(LEN(Viktminskningsspårare!$B35)=0,0,Viktminskningsspårare!$B35)),\"\")","v":"00:00:00"},{"$f":"IFERROR(IF(A32,0,IF(LEN(Viktminskningsspårare!$C35)=0,0,Viktminskningsspårare!$C35)),\"\")","v":0}]
[{"$f":"IF((LEN(Viktminskningsspårare!$C36)=0),TRUE)","v":true},{"$f":"IFERROR(IF(A33,0,IF(LEN(Viktminskningsspårare!$B36)=0,0,Viktminskningsspårare!$B36)),\"\")","v":"00:00:00"},{"$f":"IFERROR(IF(A33,0,IF(LEN(Viktminskningsspårare!$C36)=0,0,Viktminskningsspårare!$C36)),\"\")","v":0}]
[{"$f":"IF((LEN(Viktminskningsspårare!$C37)=0),TRUE)","v":true},{"$f":"IFERROR(IF(A34,0,IF(LEN(Viktminskningsspårare!$B37)=0,0,Viktminskningsspårare!$B37)),\"\")","v":"00:00:00"},{"$f":"IFERROR(IF(A34,0,IF(LEN(Viktminskningsspårare!$C37)=0,0,Viktminskningsspårare!$C37)),\"\")","v":0}]
[{"$f":"IF((LEN(Viktminskningsspårare!$C38)=0),TRUE)","v":true},{"$f":"IFERROR(IF(A35,0,IF(LEN(Viktminskningsspårare!$B38)=0,0,Viktminskningsspårare!$B38)),\"\")","v":"00:00:00"},{"$f":"IFERROR(IF(A35,0,IF(LEN(Viktminskningsspårare!$C38)=0,0,Viktminskningsspårare!$C38)),\"\")","v":0}]
[{"$f":"IF((LEN(Viktminskningsspårare!$C39)=0),TRUE)","v":true},{"$f":"IFERROR(IF(A36,0,IF(LEN(Viktminskningsspårare!$B39)=0,0,Viktminskningsspårare!$B39)),\"\")","v":"00:00:00"},{"$f":"IFERROR(IF(A36,0,IF(LEN(Viktminskningsspårare!$C39)=0,0,Viktminskningsspårare!$C39)),\"\")","v":0}]
[{"$f":"IF((LEN(Viktminskningsspårare!$C40)=0),TRUE)","v":true},{"$f":"IFERROR(IF(A37,0,IF(LEN(Viktminskningsspårare!$B40)=0,0,Viktminskningsspårare!$B40)),\"\")","v":"00:00:00"},{"$f":"IFERROR(IF(A37,0,IF(LEN(Viktminskningsspårare!$C40)=0,0,Viktminskningsspårare!$C40)),\"\")","v":0}]
[{"$f":"IF((LEN(Viktminskningsspårare!$C41)=0),TRUE)","v":true},{"$f":"IFERROR(IF(A38,0,IF(LEN(Viktminskningsspårare!$B41)=0,0,Viktminskningsspårare!$B41)),\"\")","v":"00:00:00"},{"$f":"IFERROR(IF(A38,0,IF(LEN(Viktminskningsspårare!$C41)=0,0,Viktminskningsspårare!$C41)),\"\")","v":0}]
[{"$f":"IF((LEN(Viktminskningsspårare!$C42)=0),TRUE)","v":true},{"$f":"IFERROR(IF(A39,0,IF(LEN(Viktminskningsspårare!$B42)=0,0,Viktminskningsspårare!$B42)),\"\")","v":"00:00:00"},{"$f":"IFERROR(IF(A39,0,IF(LEN(Viktminskningsspårare!$C42)=0,0,Viktminskningsspårare!$C42)),\"\")","v":0}]
[{"$f":"IF((LEN(Viktminskningsspårare!$C43)=0),TRUE)","v":true},{"$f":"IFERROR(IF(A40,0,IF(LEN(Viktminskningsspårare!$B43)=0,0,Viktminskningsspårare!$B43)),\"\")","v":"00:00:00"},{"$f":"IFERROR(IF(A40,0,IF(LEN(Viktminskningsspårare!$C43)=0,0,Viktminskningsspårare!$C43)),\"\")","v":0}]
[{"$f":"IF((LEN(Viktminskningsspårare!$C44)=0),TRUE)","v":true},{"$f":"IFERROR(IF(A41,0,IF(LEN(Viktminskningsspårare!$B44)=0,0,Viktminskningsspårare!$B44)),\"\")","v":"00:00:00"},{"$f":"IFERROR(IF(A41,0,IF(LEN(Viktminskningsspårare!$C44)=0,0,Viktminskningsspårare!$C44)),\"\")","v":0}]
[{"$f":"IF((LEN(Viktminskningsspårare!$C45)=0),TRUE)","v":true},{"$f":"IFERROR(IF(A42,0,IF(LEN(Viktminskningsspårare!$B45)=0,0,Viktminskningsspårare!$B45)),\"\")","v":"00:00:00"},{"$f":"IFERROR(IF(A42,0,IF(LEN(Viktminskningsspårare!$C45)=0,0,Viktminskningsspårare!$C45)),\"\")","v":0}]
[{"$f":"IF((LEN(Viktminskningsspårare!$C46)=0),TRUE)","v":true},{"$f":"IFERROR(IF(A43,0,IF(LEN(Viktminskningsspårare!$B46)=0,0,Viktminskningsspårare!$B46)),\"\")","v":"00:00:00"},{"$f":"IFERROR(IF(A43,0,IF(LEN(Viktminskningsspårare!$C46)=0,0,Viktminskningsspårare!$C46)),\"\")","v":0}]
[{"$f":"IF((LEN(Viktminskningsspårare!$C47)=0),TRUE)","v":true},{"$f":"IFERROR(IF(A44,0,IF(LEN(Viktminskningsspårare!$B47)=0,0,Viktminskningsspårare!$B47)),\"\")","v":"00:00:00"},{"$f":"IFERROR(IF(A44,0,IF(LEN(Viktminskningsspårare!$C47)=0,0,Viktminskningsspårare!$C47)),\"\")","v":0}]
[{"$f":"IF((LEN(Viktminskningsspårare!$C48)=0),TRUE)","v":true},{"$f":"IFERROR(IF(A45,0,IF(LEN(Viktminskningsspårare!$B48)=0,0,Viktminskningsspårare!$B48)),\"\")","v":"00:00:00"},{"$f":"IFERROR(IF(A45,0,IF(LEN(Viktminskningsspårare!$C48)=0,0,Viktminskningsspårare!$C48)),\"\")","v":0}]
[{"$f":"IF((LEN(Viktminskningsspårare!$C49)=0),TRUE)","v":true},{"$f":"IFERROR(IF(A46,0,IF(LEN(Viktminskningsspårare!$B49)=0,0,Viktminskningsspårare!$B49)),\"\")","v":"00:00:00"},{"$f":"IFERROR(IF(A46,0,IF(LEN(Viktminskningsspårare!$C49)=0,0,Viktminskningsspårare!$C49)),\"\")","v":0}]
[{"$f":"IF((LEN(Viktminskningsspårare!$C50)=0),TRUE)","v":true},{"$f":"IFERROR(IF(A47,0,IF(LEN(Viktminskningsspårare!$B50)=0,0,Viktminskningsspårare!$B50)),\"\")","v":"00:00:00"},{"$f":"IFERROR(IF(A47,0,IF(LEN(Viktminskningsspårare!$C50)=0,0,Viktminskningsspårare!$C50)),\"\")","v":0}]
[{"$f":"IF((LEN(Viktminskningsspårare!$C51)=0),TRUE)","v":true},{"$f":"IFERROR(IF(A48,0,IF(LEN(Viktminskningsspårare!$B51)=0,0,Viktminskningsspårare!$B51)),\"\")","v":"00:00:00"},{"$f":"IFERROR(IF(A48,0,IF(LEN(Viktminskningsspårare!$C51)=0,0,Viktminskningsspårare!$C51)),\"\")","v":0}]
[{"$f":"IF((LEN(Viktminskningsspårare!$C52)=0),TRUE)","v":true},{"$f":"IFERROR(IF(A49,0,IF(LEN(Viktminskningsspårare!$B52)=0,0,Viktminskningsspårare!$B52)),\"\")","v":"00:00:00"},{"$f":"IFERROR(IF(A49,0,IF(LEN(Viktminskningsspårare!$C52)=0,0,Viktminskningsspårare!$C52)),\"\")","v":0}]
[{"$f":"IF((LEN(Viktminskningsspårare!$C53)=0),TRUE)","v":true},{"$f":"IFERROR(IF(A50,0,IF(LEN(Viktminskningsspårare!$B53)=0,0,Viktminskningsspårare!$B53)),\"\")","v":"00:00:00"},{"$f":"IFERROR(IF(A50,0,IF(LEN(Viktminskningsspårare!$C53)=0,0,Viktminskningsspårare!$C53)),\"\")","v":0}]
[{"$f":"IF((LEN(Viktminskningsspårare!$C54)=0),TRUE)","v":true},{"$f":"IFERROR(IF(A51,0,IF(LEN(Viktminskningsspårare!$B54)=0,0,Viktminskningsspårare!$B54)),\"\")","v":"00:00:00"},{"$f":"IFERROR(IF(A51,0,IF(LEN(Viktminskningsspårare!$C54)=0,0,Viktminskningsspårare!$C54)),\"\")","v":0}]
[{"$f":"IF((LEN(Viktminskningsspårare!$C55)=0),TRUE)","v":true},{"$f":"IFERROR(IF(A52,0,IF(LEN(Viktminskningsspårare!$B55)=0,0,Viktminskningsspårare!$B55)),\"\")","v":"00:00:00"},{"$f":"IFERROR(IF(A52,0,IF(LEN(Viktminskningsspårare!$C55)=0,0,Viktminskningsspårare!$C55)),\"\")","v":0}]
[{"$f":"IF((LEN(Viktminskningsspårare!$C56)=0),TRUE)","v":true},{"$f":"IFERROR(IF(A53,0,IF(LEN(Viktminskningsspårare!$B56)=0,0,Viktminskningsspårare!$B56)),\"\")","v":"00:00:00"},{"$f":"IFERROR(IF(A53,0,IF(LEN(Viktminskningsspårare!$C56)=0,0,Viktminskningsspårare!$C56)),\"\")","v":0}]
[{"$f":"IF((LEN(Viktminskningsspårare!$C57)=0),TRUE)","v":true},{"$f":"IFERROR(IF(A54,0,IF(LEN(Viktminskningsspårare!$B57)=0,0,Viktminskningsspårare!$B57)),\"\")","v":"00:00:00"},{"$f":"IFERROR(IF(A54,0,IF(LEN(Viktminskningsspårare!$C57)=0,0,Viktminskningsspårare!$C57)),\"\")","v":0}]
[{"$f":"IF((LEN(Viktminskningsspårare!$C58)=0),TRUE)","v":true},{"$f":"IFERROR(IF(A55,0,IF(LEN(Viktminskningsspårare!$B58)=0,0,Viktminskningsspårare!$B58)),\"\")","v":"00:00:00"},{"$f":"IFERROR(IF(A55,0,IF(LEN(Viktminskningsspårare!$C58)=0,0,Viktminskningsspårare!$C58)),\"\")","v":0}]
[{"$f":"IF((LEN(Viktminskningsspårare!$C59)=0),TRUE)","v":true},{"$f":"IFERROR(IF(A56,0,IF(LEN(Viktminskningsspårare!$B59)=0,0,Viktminskningsspårare!$B59)),\"\")","v":"00:00:00"},{"$f":"IFERROR(IF(A56,0,IF(LEN(Viktminskningsspårare!$C59)=0,0,Viktminskningsspårare!$C59)),\"\")","v":0}]
[{"$f":"IF((LEN(Viktminskningsspårare!$C60)=0),TRUE)","v":true},{"$f":"IFERROR(IF(A57,0,IF(LEN(Viktminskningsspårare!$B60)=0,0,Viktminskningsspårare!$B60)),\"\")","v":"00:00:00"},{"$f":"IFERROR(IF(A57,0,IF(LEN(Viktminskningsspårare!$C60)=0,0,Viktminskningsspårare!$C60)),\"\")","v":0}]
[{"$f":"IF((LEN(Viktminskningsspårare!$C61)=0),TRUE)","v":true},{"$f":"IFERROR(IF(A58,0,IF(LEN(Viktminskningsspårare!$B61)=0,0,Viktminskningsspårare!$B61)),\"\")","v":"00:00:00"},{"$f":"IFERROR(IF(A58,0,IF(LEN(Viktminskningsspårare!$C61)=0,0,Viktminskningsspårare!$C61)),\"\")","v":0}]
[{"$f":"IF((LEN(Viktminskningsspårare!$C62)=0),TRUE)","v":true},{"$f":"IFERROR(IF(A59,0,IF(LEN(Viktminskningsspårare!$B62)=0,0,Viktminskningsspårare!$B62)),\"\")","v":"00:00:00"},{"$f":"IFERROR(IF(A59,0,IF(LEN(Viktminskningsspårare!$C62)=0,0,Viktminskningsspårare!$C62)),\"\")","v":0}]
[{"$f":"IF((LEN(Viktminskningsspårare!$C63)=0),TRUE)","v":true},{"$f":"IFERROR(IF(A60,0,IF(LEN(Viktminskningsspårare!$B63)=0,0,Viktminskningsspårare!$B63)),\"\")","v":"00:00:00"},{"$f":"IFERROR(IF(A60,0,IF(LEN(Viktminskningsspårare!$C63)=0,0,Viktminskningsspårare!$C63)),\"\")","v":0}]
[{"$f":"IF((LEN(Viktminskningsspårare!$C64)=0),TRUE)","v":true},{"$f":"IFERROR(IF(A61,0,IF(LEN(Viktminskningsspårare!$B64)=0,0,Viktminskningsspårare!$B64)),\"\")","v":"00:00:00"},{"$f":"IFERROR(IF(A61,0,IF(LEN(Viktminskningsspårare!$C64)=0,0,Viktminskningsspårare!$C64)),\"\")","v":0}]
[{"$f":"IF((LEN(Viktminskningsspårare!$C65)=0),TRUE)","v":true},{"$f":"IFERROR(IF(A62,0,IF(LEN(Viktminskningsspårare!$B65)=0,0,Viktminskningsspårare!$B65)),\"\")","v":"00:00:00"},{"$f":"IFERROR(IF(A62,0,IF(LEN(Viktminskningsspårare!$C65)=0,0,Viktminskningsspårare!$C65)),\"\")","v":0}]
[{"$f":"IF((LEN(Viktminskningsspårare!$C66)=0),TRUE)","v":true},{"$f":"IFERROR(IF(A63,0,IF(LEN(Viktminskningsspårare!$B66)=0,0,Viktminskningsspårare!$B66)),\"\")","v":"00:00:00"},{"$f":"IFERROR(IF(A63,0,IF(LEN(Viktminskningsspårare!$C66)=0,0,Viktminskningsspårare!$C66)),\"\")","v":0}]
[{"$f":"IF((LEN(Viktminskningsspårare!$C67)=0),TRUE)","v":true},{"$f":"IFERROR(IF(A64,0,IF(LEN(Viktminskningsspårare!$B67)=0,0,Viktminskningsspårare!$B67)),\"\")","v":"00:00:00"},{"$f":"IFERROR(IF(A64,0,IF(LEN(Viktminskningsspårare!$C67)=0,0,Viktminskningsspårare!$C67)),\"\")","v":0}]
[{"$f":"IF((LEN(Viktminskningsspårare!$C68)=0),TRUE)","v":true},{"$f":"IFERROR(IF(A65,0,IF(LEN(Viktminskningsspårare!$B68)=0,0,Viktminskningsspårare!$B68)),\"\")","v":"00:00:00"},{"$f":"IFERROR(IF(A65,0,IF(LEN(Viktminskningsspårare!$C68)=0,0,Viktminskningsspårare!$C68)),\"\")","v":0}]
[{"$f":"IF((LEN(Viktminskningsspårare!$C69)=0),TRUE)","v":true},{"$f":"IFERROR(IF(A66,0,IF(LEN(Viktminskningsspårare!$B69)=0,0,Viktminskningsspårare!$B69)),\"\")","v":"00:00:00"},{"$f":"IFERROR(IF(A66,0,IF(LEN(Viktminskningsspårare!$C69)=0,0,Viktminskningsspårare!$C69)),\"\")","v":0}]
[{"$f":"IF((LEN(Viktminskningsspårare!$C70)=0),TRUE)","v":true},{"$f":"IFERROR(IF(A67,0,IF(LEN(Viktminskningsspårare!$B70)=0,0,Viktminskningsspårare!$B70)),\"\")","v":"00:00:00"},{"$f":"IFERROR(IF(A67,0,IF(LEN(Viktminskningsspårare!$C70)=0,0,Viktminskningsspårare!$C70)),\"\")","v":0}]
[{"$f":"IF((LEN(Viktminskningsspårare!$C71)=0),TRUE)","v":true},{"$f":"IFERROR(IF(A68,0,IF(LEN(Viktminskningsspårare!$B71)=0,0,Viktminskningsspårare!$B71)),\"\")","v":"00:00:00"},{"$f":"IFERROR(IF(A68,0,IF(LEN(Viktminskningsspårare!$C71)=0,0,Viktminskningsspårare!$C71)),\"\")","v":0}]
[{"$f":"IF((LEN(Viktminskningsspårare!$C72)=0),TRUE)","v":true},{"$f":"IFERROR(IF(A69,0,IF(LEN(Viktminskningsspårare!$B72)=0,0,Viktminskningsspårare!$B72)),\"\")","v":"00:00:00"},{"$f":"IFERROR(IF(A69,0,IF(LEN(Viktminskningsspårare!$C72)=0,0,Viktminskningsspårare!$C72)),\"\")","v":0}]
[{"$f":"IF((LEN(Viktminskningsspårare!$C73)=0),TRUE)","v":true},{"$f":"IFERROR(IF(A70,0,IF(LEN(Viktminskningsspårare!$B73)=0,0,Viktminskningsspårare!$B73)),\"\")","v":"00:00:00"},{"$f":"IFERROR(IF(A70,0,IF(LEN(Viktminskningsspårare!$C73)=0,0,Viktminskningsspårare!$C73)),\"\")","v":0}]
[{"$f":"IF((LEN(Viktminskningsspårare!$C74)=0),TRUE)","v":true},{"$f":"IFERROR(IF(A71,0,IF(LEN(Viktminskningsspårare!$B74)=0,0,Viktminskningsspårare!$B74)),\"\")","v":"00:00:00"},{"$f":"IFERROR(IF(A71,0,IF(LEN(Viktminskningsspårare!$C74)=0,0,Viktminskningsspårare!$C74)),\"\")","v":0}]
[{"$f":"IF((LEN(Viktminskningsspårare!$C75)=0),TRUE)","v":true},{"$f":"IFERROR(IF(A72,0,IF(LEN(Viktminskningsspårare!$B75)=0,0,Viktminskningsspårare!$B75)),\"\")","v":"00:00:00"},{"$f":"IFERROR(IF(A72,0,IF(LEN(Viktminskningsspårare!$C75)=0,0,Viktminskningsspårare!$C75)),\"\")","v":0}]
[{"$f":"IF((LEN(Viktminskningsspårare!$C76)=0),TRUE)","v":true},{"$f":"IFERROR(IF(A73,0,IF(LEN(Viktminskningsspårare!$B76)=0,0,Viktminskningsspårare!$B76)),\"\")","v":"00:00:00"},{"$f":"IFERROR(IF(A73,0,IF(LEN(Viktminskningsspårare!$C76)=0,0,Viktminskningsspårare!$C76)),\"\")","v":0}]
[{"$f":"IF((LEN(Viktminskningsspårare!$C77)=0),TRUE)","v":true},{"$f":"IFERROR(IF(A74,0,IF(LEN(Viktminskningsspårare!$B77)=0,0,Viktminskningsspårare!$B77)),\"\")","v":"00:00:00"},{"$f":"IFERROR(IF(A74,0,IF(LEN(Viktminskningsspårare!$C77)=0,0,Viktminskningsspårare!$C77)),\"\")","v":0}]
[{"$f":"IF((LEN(Viktminskningsspårare!$C78)=0),TRUE)","v":true},{"$f":"IFERROR(IF(A75,0,IF(LEN(Viktminskningsspårare!$B78)=0,0,Viktminskningsspårare!$B78)),\"\")","v":"00:00:00"},{"$f":"IFERROR(IF(A75,0,IF(LEN(Viktminskningsspårare!$C78)=0,0,Viktminskningsspårare!$C78)),\"\")","v":0}]
[{"$f":"IF((LEN(Viktminskningsspårare!$C79)=0),TRUE)","v":true},{"$f":"IFERROR(IF(A76,0,IF(LEN(Viktminskningsspårare!$B79)=0,0,Viktminskningsspårare!$B79)),\"\")","v":"00:00:00"},{"$f":"IFERROR(IF(A76,0,IF(LEN(Viktminskningsspårare!$C79)=0,0,Viktminskningsspårare!$C79)),\"\")","v":0}]
[{"$f":"IF((LEN(Viktminskningsspårare!$C80)=0),TRUE)","v":true},{"$f":"IFERROR(IF(A77,0,IF(LEN(Viktminskningsspårare!$B80)=0,0,Viktminskningsspårare!$B80)),\"\")","v":"00:00:00"},{"$f":"IFERROR(IF(A77,0,IF(LEN(Viktminskningsspårare!$C80)=0,0,Viktminskningsspårare!$C80)),\"\")","v":0}]
[{"$f":"IF((LEN(Viktminskningsspårare!$C81)=0),TRUE)","v":true},{"$f":"IFERROR(IF(A78,0,IF(LEN(Viktminskningsspårare!$B81)=0,0,Viktminskningsspårare!$B81)),\"\")","v":"00:00:00"},{"$f":"IFERROR(IF(A78,0,IF(LEN(Viktminskningsspårare!$C81)=0,0,Viktminskningsspårare!$C81)),\"\")","v":0}]
[{"$f":"IF((LEN(Viktminskningsspårare!$C82)=0),TRUE)","v":true},{"$f":"IFERROR(IF(A79,0,IF(LEN(Viktminskningsspårare!$B82)=0,0,Viktminskningsspårare!$B82)),\"\")","v":"00:00:00"},{"$f":"IFERROR(IF(A79,0,IF(LEN(Viktminskningsspårare!$C82)=0,0,Viktminskningsspårare!$C82)),\"\")","v":0}]
[{"$f":"IF((LEN(Viktminskningsspårare!$C83)=0),TRUE)","v":true},{"$f":"IFERROR(IF(A80,0,IF(LEN(Viktminskningsspårare!$B83)=0,0,Viktminskningsspårare!$B83)),\"\")","v":"00:00:00"},{"$f":"IFERROR(IF(A80,0,IF(LEN(Viktminskningsspårare!$C83)=0,0,Viktminskningsspårare!$C83)),\"\")","v":0}]
[{"$f":"IF((LEN(Viktminskningsspårare!$C84)=0),TRUE)","v":true},{"$f":"IFERROR(IF(A81,0,IF(LEN(Viktminskningsspårare!$B84)=0,0,Viktminskningsspårare!$B84)),\"\")","v":"00:00:00"},{"$f":"IFERROR(IF(A81,0,IF(LEN(Viktminskningsspårare!$C84)=0,0,Viktminskningsspårare!$C84)),\"\")","v":0}]
[{"$f":"IF((LEN(Viktminskningsspårare!$C85)=0),TRUE)","v":true},{"$f":"IFERROR(IF(A82,0,IF(LEN(Viktminskningsspårare!$B85)=0,0,Viktminskningsspårare!$B85)),\"\")","v":"00:00:00"},{"$f":"IFERROR(IF(A82,0,IF(LEN(Viktminskningsspårare!$C85)=0,0,Viktminskningsspårare!$C85)),\"\")","v":0}]
[{"$f":"IF((LEN(Viktminskningsspårare!$C86)=0),TRUE)","v":true},{"$f":"IFERROR(IF(A83,0,IF(LEN(Viktminskningsspårare!$B86)=0,0,Viktminskningsspårare!$B86)),\"\")","v":"00:00:00"},{"$f":"IFERROR(IF(A83,0,IF(LEN(Viktminskningsspårare!$C86)=0,0,Viktminskningsspårare!$C86)),\"\")","v":0}]
[{"$f":"IF((LEN(Viktminskningsspårare!$C87)=0),TRUE)","v":true},{"$f":"IFERROR(IF(A84,0,IF(LEN(Viktminskningsspårare!$B87)=0,0,Viktminskningsspårare!$B87)),\"\")","v":"00:00:00"},{"$f":"IFERROR(IF(A84,0,IF(LEN(Viktminskningsspårare!$C87)=0,0,Viktminskningsspårare!$C87)),\"\")","v":0}]
[{"$f":"IF((LEN(Viktminskningsspårare!$C88)=0),TRUE)","v":true},{"$f":"IFERROR(IF(A85,0,IF(LEN(Viktminskningsspårare!$B88)=0,0,Viktminskningsspårare!$B88)),\"\")","v":"00:00:00"},{"$f":"IFERROR(IF(A85,0,IF(LEN(Viktminskningsspårare!$C88)=0,0,Viktminskningsspårare!$C88)),\"\")","v":0}]
[{"$f":"IF((LEN(Viktminskningsspårare!$C89)=0),TRUE)","v":true},{"$f":"IFERROR(IF(A86,0,IF(LEN(Viktminskningsspårare!$B89)=0,0,Viktminskningsspårare!$B89)),\"\")","v":"00:00:00"},{"$f":"IFERROR(IF(A86,0,IF(LEN(Viktminskningsspårare!$C89)=0,0,Viktminskningsspårare!$C89)),\"\")","v":0}]
[{"$f":"IF((LEN(Viktminskningsspårare!$C90)=0),TRUE)","v":true},{"$f":"IFERROR(IF(A87,0,IF(LEN(Viktminskningsspårare!$B90)=0,0,Viktminskningsspårare!$B90)),\"\")","v":"00:00:00"},{"$f":"IFERROR(IF(A87,0,IF(LEN(Viktminskningsspårare!$C90)=0,0,Viktminskningsspårare!$C90)),\"\")","v":0}]
[{"$f":"IF((LEN(Viktminskningsspårare!$C91)=0),TRUE)","v":true},{"$f":"IFERROR(IF(A88,0,IF(LEN(Viktminskningsspårare!$B91)=0,0,Viktminskningsspårare!$B91)),\"\")","v":"00:00:00"},{"$f":"IFERROR(IF(A88,0,IF(LEN(Viktminskningsspårare!$C91)=0,0,Viktminskningsspårare!$C91)),\"\")","v":0}]
[{"$f":"IF((LEN(Viktminskningsspårare!$C92)=0),TRUE)","v":true},{"$f":"IFERROR(IF(A89,0,IF(LEN(Viktminskningsspårare!$B92)=0,0,Viktminskningsspårare!$B92)),\"\")","v":"00:00:00"},{"$f":"IFERROR(IF(A89,0,IF(LEN(Viktminskningsspårare!$C92)=0,0,Viktminskningsspårare!$C92)),\"\")","v":0}]
[{"$f":"IF((LEN(Viktminskningsspårare!$C93)=0),TRUE)","v":true},{"$f":"IFERROR(IF(A90,0,IF(LEN(Viktminskningsspårare!$B93)=0,0,Viktminskningsspårare!$B93)),\"\")","v":"00:00:00"},{"$f":"IFERROR(IF(A90,0,IF(LEN(Viktminskningsspårare!$C93)=0,0,Viktminskningsspårare!$C93)),\"\")","v":0}]
[{"$f":"IF((LEN(Viktminskningsspårare!$C94)=0),TRUE)","v":true},{"$f":"IFERROR(IF(A91,0,IF(LEN(Viktminskningsspårare!$B94)=0,0,Viktminskningsspårare!$B94)),\"\")","v":"00:00:00"},{"$f":"IFERROR(IF(A91,0,IF(LEN(Viktminskningsspårare!$C94)=0,0,Viktminskningsspårare!$C94)),\"\")","v":0}]
[{"$f":"IF((LEN(Viktminskningsspårare!$C95)=0),TRUE)","v":true},{"$f":"IFERROR(IF(A92,0,IF(LEN(Viktminskningsspårare!$B95)=0,0,Viktminskningsspårare!$B95)),\"\")","v":"00:00:00"},{"$f":"IFERROR(IF(A92,0,IF(LEN(Viktminskningsspårare!$C95)=0,0,Viktminskningsspårare!$C95)),\"\")","v":0}]
[{"$f":"IF((LEN(Viktminskningsspårare!$C96)=0),TRUE)","v":true},{"$f":"IFERROR(IF(A93,0,IF(LEN(Viktminskningsspårare!$B96)=0,0,Viktminskningsspårare!$B96)),\"\")","v":"00:00:00"},{"$f":"IFERROR(IF(A93,0,IF(LEN(Viktminskningsspårare!$C96)=0,0,Viktminskningsspårare!$C96)),\"\")","v":0}]
[{"$f":"IF((LEN(Viktminskningsspårare!$C97)=0),TRUE)","v":true},{"$f":"IFERROR(IF(A94,0,IF(LEN(Viktminskningsspårare!$B97)=0,0,Viktminskningsspårare!$B97)),\"\")","v":"00:00:00"},{"$f":"IFERROR(IF(A94,0,IF(LEN(Viktminskningsspårare!$C97)=0,0,Viktminskningsspårare!$C97)),\"\")","v":0}]
[{"$f":"IF((LEN(Viktminskningsspårare!$C98)=0),TRUE)","v":true},{"$f":"IFERROR(IF(A95,0,IF(LEN(Viktminskningsspårare!$B98)=0,0,Viktminskningsspårare!$B98)),\"\")","v":"00:00:00"},{"$f":"IFERROR(IF(A95,0,IF(LEN(Viktminskningsspårare!$C98)=0,0,Viktminskningsspårare!$C98)),\"\")","v":0}]
[{"$f":"IF((LEN(Viktminskningsspårare!$C99)=0),TRUE)","v":true},{"$f":"IFERROR(IF(A96,0,IF(LEN(Viktminskningsspårare!$B99)=0,0,Viktminskningsspårare!$B99)),\"\")","v":"00:00:00"},{"$f":"IFERROR(IF(A96,0,IF(LEN(Viktminskningsspårare!$C99)=0,0,Viktminskningsspårare!$C99)),\"\")","v":0}]
[{"$f":"IF((LEN(Viktminskningsspårare!$C100)=0),TRUE)","v":true},{"$f":"IFERROR(IF(A97,0,IF(LEN(Viktminskningsspårare!$B100)=0,0,Viktminskningsspårare!$B100)),\"\")","v":"00:00:00"},{"$f":"IFERROR(IF(A97,0,IF(LEN(Viktminskningsspårare!$C100)=0,0,Viktminskningsspårare!$C100)),\"\")","v":0}]
[{"$f":"IF((LEN(Viktminskningsspårare!$C101)=0),TRUE)","v":true},{"$f":"IFERROR(IF(A98,0,IF(LEN(Viktminskningsspårare!$B101)=0,0,Viktminskningsspårare!$B101)),\"\")","v":"00:00:00"},{"$f":"IFERROR(IF(A98,0,IF(LEN(Viktminskningsspårare!$C101)=0,0,Viktminskningsspårare!$C101)),\"\")","v":0}]
[{"$f":"IF((LEN(Viktminskningsspårare!$C102)=0),TRUE)","v":true},{"$f":"IFERROR(IF(A99,0,IF(LEN(Viktminskningsspårare!$B102)=0,0,Viktminskningsspårare!$B102)),\"\")","v":"00:00:00"},{"$f":"IFERROR(IF(A99,0,IF(LEN(Viktminskningsspårare!$C102)=0,0,Viktminskningsspårare!$C102)),\"\")","v":0}]
[{"$f":"IF((LEN(Viktminskningsspårare!$C103)=0),TRUE)","v":true},{"$f":"IFERROR(IF(A100,0,IF(LEN(Viktminskningsspårare!$B103)=0,0,Viktminskningsspårare!$B103)),\"\")","v":"00:00:00"},{"$f":"IFERROR(IF(A100,0,IF(LEN(Viktminskningsspårare!$C103)=0,0,Viktminskningsspårare!$C103)),\"\")","v":0}]
[{"$f":"IF((LEN(Viktminskningsspårare!$C104)=0),TRUE)","v":true},{"$f":"IFERROR(IF(A101,0,IF(LEN(Viktminskningsspårare!$B104)=0,0,Viktminskningsspårare!$B104)),\"\")","v":"00:00:00"},{"$f":"IFERROR(IF(A101,0,IF(LEN(Viktminskningsspårare!$C104)=0,0,Viktminskningsspårare!$C104)),\"\")","v":0}]
[{"$f":"IF((LEN(Viktminskningsspårare!$C105)=0),TRUE)","v":true},{"$f":"IFERROR(IF(A102,0,IF(LEN(Viktminskningsspårare!$B105)=0,0,Viktminskningsspårare!$B105)),\"\")","v":"00:00:00"},{"$f":"IFERROR(IF(A102,0,IF(LEN(Viktminskningsspårare!$C105)=0,0,Viktminskningsspårare!$C105)),\"\")","v":0}]
[{"$f":"IF((LEN(Viktminskningsspårare!$C106)=0),TRUE)","v":true},{"$f":"IFERROR(IF(A103,0,IF(LEN(Viktminskningsspårare!$B106)=0,0,Viktminskningsspårare!$B106)),\"\")","v":"00:00:00"},{"$f":"IFERROR(IF(A103,0,IF(LEN(Viktminskningsspårare!$C106)=0,0,Viktminskningsspårare!$C106)),\"\")","v":0}]
[{"$f":"IF((LEN(Viktminskningsspårare!$C107)=0),TRUE)","v":true},{"$f":"IFERROR(IF(A104,0,IF(LEN(Viktminskningsspårare!$B107)=0,0,Viktminskningsspårare!$B107)),\"\")","v":"00:00:00"},{"$f":"IFERROR(IF(A104,0,IF(LEN(Viktminskningsspårare!$C107)=0,0,Viktminskningsspårare!$C107)),\"\")","v":0}]
[{"$f":"IF((LEN(Viktminskningsspårare!$C108)=0),TRUE)","v":true},{"$f":"IFERROR(IF(A105,0,IF(LEN(Viktminskningsspårare!$B108)=0,0,Viktminskningsspårare!$B108)),\"\")","v":"00:00:00"},{"$f":"IFERROR(IF(A105,0,IF(LEN(Viktminskningsspårare!$C108)=0,0,Viktminskningsspårare!$C108)),\"\")","v":0}]
[{"$f":"IF((LEN(Viktminskningsspårare!$C109)=0),TRUE)","v":true},{"$f":"IFERROR(IF(A106,0,IF(LEN(Viktminskningsspårare!$B109)=0,0,Viktminskningsspårare!$B109)),\"\")","v":"00:00:00"},{"$f":"IFERROR(IF(A106,0,IF(LEN(Viktminskningsspårare!$C109)=0,0,Viktminskningsspårare!$C109)),\"\")","v":0}]
[{"$f":"IF((LEN(Viktminskningsspårare!$C110)=0),TRUE)","v":true},{"$f":"IFERROR(IF(A107,0,IF(LEN(Viktminskningsspårare!$B110)=0,0,Viktminskningsspårare!$B110)),\"\")","v":"00:00:00"},{"$f":"IFERROR(IF(A107,0,IF(LEN(Viktminskningsspårare!$C110)=0,0,Viktminskningsspårare!$C110)),\"\")","v":0}]